[Event "UKR-ch Women 2020"]
[Site "Kherson"]
[Date "2020.12.09"]
[Round "4.3"]
[White "Hrebenshchykova, Yelyzaveta"]
[Black "Doluhanova, Evgeniya"]
[Result "1/2-1/2"]
[ECO "E18"]
[WhiteElo "2083"]
[BlackElo "2229"]
[Annotator "RC"]
[PlyCount "55"]
[EventDate "2020.12.06"]
[EventType "swiss"]
[EventCountry "UKR"]
[SourceTitle "playchess.com"]
[Source "ChessBase"]
[SourceQuality "1"]
[TimeControl "40/5400+30:1800+30"]

1. d4 {[%emt 0:00:00]} Nf6 {[%emt 0:00:00]} 2. c4 {[%emt 0:00:00]} e6 {[%emt 0:00:13]} 3. Nf3 {[%emt 0:00:00]} b6 {[%emt 0:00:26]} 4. g3 {[%emt 0:00:30]} Bb7 {[%emt 0:00:06]} 5. Bg2 {[%emt 0:00:23]} Be7 {[%emt 0:00:15]} 6. O-O {[%emt 0:00:17]} O-O {[%emt 0:00:31]} 7. Nc3 {[%emt 0:01:40]} Ne4 {[%emt 0:00:37]} 8. Bd2 {[%emt 0:01:01]} Nxc3 {[%emt 0:05:07]} 9. Bxc3 {[%emt 0:00:23]} Be4 {[%emt 0:01:16]} 10. Ne5 {[%emt 0:25:00]} Bxg2 {[%emt 0:00:30]} 11. Kxg2 {[%emt 0:00:04]} d6 {[%emt 0:02:07]} 12. Nd3 {[%emt 0:04:03]} d5 {[%emt 0:03:07]} 13. cxd5 {[%emt 0:14:46]} Qxd5+ {[%emt 0:10:30]} 14. f3 {[%emt 0:03:37]} Rd8 {[%emt 0:02:32]} 15. e4 {[%emt 0:04:21]} Qb7 {[%emt 0:01:12]} 16. Nf4 {[%emt 0:05:06]} Bg5 {[%emt 0:10:27]} 17. Qe2 {[%emt 0:03:40]} Bxf4 {[%emt 0:27:00]} 18. gxf4 {[%emt 0:00:05]} c5 {[%emt 0:00:22]} 19. dxc5 {[%emt 0:04:44]} bxc5 {[%emt 0:00:58]} 20. Rad1 {[%emt 0:06:50]} Nc6 {[%emt 0:02:19]} 21. Rxd8+ {[%emt 0:01:13]} Rxd8 {[%emt 0:00:09]} 22. Rd1 {[%emt 0:00:03]} Rxd1 {[%emt 0:11:40]} 23. Qxd1 {[%emt 0:00:04]} Qc7 {[%emt 0:00:21]} 24. Qd2 {[%emt 0:06:40]} h6 {[%emt 0:00:44]} 25. h4 {[%emt 0:05:30]} Kh7 {[%emt 0:03:56]} 26. Kf2 {[%emt 0:03:31]} Qe7 {[%emt 0:04:32]} 27. Kg3 {[%emt 0:00:33]} Qc7 {[%emt 0:00:20]} 28. Kf2 {[%emt 0:02:56]} 1/2-1/2

[Event "UKR-ch Women 2020"]
[Site "Kherson"]
[Date "2020.12.09"]
[Round "4.4"]
[White "Grigorchuk, Katerina"]
[Black "Rakhmangulova, Anastasiya"]
[Result "0-1"]
[ECO "C10"]
[WhiteElo "1767"]
[BlackElo "2132"]
[Annotator "RC"]
[PlyCount "42"]
[EventDate "2020.12.06"]
[EventType "swiss"]
[EventCountry "UKR"]
[SourceTitle "playchess.com"]
[Source "ChessBase"]
[SourceQuality "1"]
[TimeControl "40/5400+30:1800+30"]

1. e4 {[%emt 0:00:00]} e6 {[%emt 0:00:00]} 2. d4 {[%emt 0:00:00]} d5 {[%emt 0:00:00]} 3. Nc3 {[%emt 0:00:00]} Nc6 {[%emt 0:00:00]} 4. e5 {[%emt 0:07:42]} f6 {[%emt 0:00:00]} 5. exf6 {[%emt 0:02:52]} Nxf6 {[%emt 0:00:22]} 6. Nf3 {[%emt 0:00:16]} Bd6 {[%emt 0:00:08]} 7. Bd3 {[%emt 0:00:35]} O-O {[%emt 0:00:12]} 8. O-O {[%emt 0:00:27]} Bd7 {[%emt 0:02:56]} 9. Re1 {[%emt 0:03:22]} Ng4 {[%emt 0:34:34]} 10. Bg5 {[%emt 0:23:26]} Qe8 {[%emt 0:28:16]} 11. Bh4 {[%emt 0:07:29]} Qh5 {[%emt 0:02:16]} 12. h3 {[%emt 0:08:54]} e5 {[%emt 0:07:42]} 13. dxe5 {[%emt 0:03:54]} Ncxe5 {[%emt 0:01:50]} 14. Be2 {[%emt 0:14:45]} Nxf3+ {[%emt 0:04:44]} 15. Bxf3 {[%emt 0:00:37]} Qxh4 {[%emt 0:00:15]} 16. Qxd5+ {[%emt 0:05:57]} Kh8 {[%emt 0:01:05]} 17. hxg4 {[%emt 0:01:10]} Bxg4 {[%emt 0:05:31]} 18. g3 {[%emt 0:05:21]} Bxg3 {[%emt 0:00:17]} 19. fxg3 {[%emt 0:00:09]} Qxg3+ {[%emt 0:00:04]} 20. Bg2 {[%emt 0:00:07]} Qf2+ {[%emt 0:00:11]} 21. Kh1 {[%emt 0:00:35]} Rf6 {[%emt 0:00:35]} 0-1

[Event "UKR-ch Women 2020"]
[Site "Kherson"]
[Date "2020.12.09"]
[Round "4.5"]
[White "Gaponenko, Inna"]
[Black "Babiy, Olga"]
[Result "1/2-1/2"]
[ECO "B13"]
[WhiteElo "2390"]
[BlackElo "2271"]
[Annotator "RC"]
[PlyCount "79"]
[EventDate "2020.12.06"]
[EventType "swiss"]
[EventCountry "UKR"]
[SourceTitle "playchess.com"]
[Source "ChessBase"]
[SourceQuality "1"]
[TimeControl "40/5400+30:1800+30"]

1. e4 {[%emt 0:00:00]} c6 {[%emt 0:00:00]} 2. d4 {[%emt 0:00:00]} d5 {[%emt 0:00:00]} 3. exd5 {[%emt 0:00:00]} cxd5 {[%emt 0:00:00]} 4. c4 {[%emt 0:00:00]} Nf6 {[%emt 0:00:00]} 5. Nc3 {[%emt 0:00:00]} Nc6 {[%emt 0:00:00]} 6. Nf3 {[%emt 0:00:02]} Bg4 {[%emt 0:00:14]} 7. cxd5 {[%emt 0:00:09]} Nxd5 {[%emt 0:00:08]} 8. Qb3 {[%emt 0:00:11]} Bxf3 {[%emt 0:00:13]} 9. gxf3 {[%emt 0:00:05]} e6 {[%emt 0:00:08]} 10. Qxb7 {[%emt 0:00:12]} Nxd4 {[%emt 0:00:08]} 11. Bb5+ {[%emt 0:00:19]} Nxb5 {[%emt 0:00:06]} 12. Qc6+ {[%emt 0:00:06]} Ke7 {[%emt 0:00:05]} 13. Qxb5 {[%emt 0:01:05]} Qd7 {[%emt 0:00:25]} 14. Nxd5+ {[%emt 0:02:19]} Qxd5 {[%emt 0:00:15]} 15. Bg5+ {[%emt 0:21:49]} f6 {[%emt 0:00:07]} 16. Qxd5 {[%emt 0:00:03]} exd5 {[%emt 0:00:03]} 17. Be3 {[%emt 0:00:05]} Ke6 {[%emt 0:00:20]} 18. O-O-O {[%emt 0:00:06]} Bb4 {[%emt 0:00:51]} 19. a3 {[%emt 0:00:04]} Rhc8+ {[%emt 0:00:42]} 20. Kb1 {[%emt 0:00:05]} Bc5 {[%emt 0:00:36]} 21. Rhe1 {[%emt 0:00:13]} Bxe3 {[%emt 0:00:22]} 22. Rxe3+ {[%emt 0:00:04]} Kd6 {[%emt 0:00:04]} 23. Rde1 {[%emt 0:00:12]} Rc4 {[%emt 0:00:34]} 24. Re6+ {[%emt 0:00:06]} Kc5 {[%emt 0:00:20]} 25. Rg1 {[%emt 0:00:53]} Rh4 {[%emt 0:02:26]} 26. Rc1+ {[%emt 0:03:48]} Rc4 {[%emt 0:01:42]} 27. b4+ {[%emt 0:44:06]} Kb5 {[%emt 0:00:36]} 28. Rd6 {[%emt 0:00:11]} Rxc1+ {[%emt 0:02:29]} 29. Kxc1 {[%emt 0:00:22]} Kc4 {[%emt 0:05:55]} 30. Kd2 {[%emt 0:00:37]} a6 {[%emt 0:13:46]} 31. Rd7 {[%emt 0:06:54]} g5 {[%emt 0:17:44]} 32. Rxh7 {[%emt 0:04:06]} Kb3 {[%emt 0:14:38]} 33. Rb7 {[%emt 0:00:44]} Kxa3 {[%emt 0:00:54]} 34. Rb6 {[%emt 0:05:47]} Kb3 {[%emt 0:06:13]} 35. Kd3 {[%emt 0:01:23]} Rh8 {[%emt 0:01:04]} 36. Rxa6 {[%emt 0:02:10]} Kxb4 {[%emt 0:00:20]} 37. f4 {[%emt 0:09:04]} gxf4 {[%emt 0:05:36]} 38. Rxf6 {[%emt 0:00:21]} Rxh2 {[%emt 0:00:14]} 39. Rxf4+ {[%emt 0:00:03]} Kc5 {[%emt 0:00:05]} 40. Rf8 {[%emt 0:00:00]} 1/2-1/2

[Event "UKR-ch Women 2020"]
[Site "Kherson"]
[Date "2020.12.09"]
[Round "4.6"]
[White "Barchuk, Irina"]
[Black "Petrova, Irina"]
[Result "0-1"]
[ECO "B07"]
[WhiteElo "2075"]
[BlackElo "2077"]
[Annotator "NA"]
[PlyCount "108"]
[EventDate "2020.12.06"]
[EventType "swiss"]
[EventCountry "UKR"]
[SourceTitle "playchess.com"]
[Source "ChessBase"]
[SourceQuality "1"]
[TimeControl "40/5400+30:1800+30"]

{[%evp 8,86,52,51,54,52,63,51,86,45,59,47,55,51,52,56,65,58,119,75,115,104,100,101,108,32767,104,89,129,99,170,32767,32767,121,32767,32767,32767,32767,114,4,93,62,30,0,103,32767,32767,258,32767,246,307,29,34,32767,-83,-320,-345,32767,-59,-320,-45,-57,-56,-186,-135,-673,-782,32767,32767,32767,32767,32767,-856,32767,32767,32767,32767,32767,32767,32767,-666]} 1. e4 {[%emt 0:00:00]} d6 {[%emt 0:00:00]} 2. d4 {[%emt 0:00:00]} Nf6 {[%emt 0:00:00]} 3. Nc3 {[%emt 0:00:00]} e5 {[%emt 0:00:00]} 4. Nge2 {[%emt 0:00:00]} Nc6 {[%emt 0:00:00]} 5. d5 {[%emt 0:00:07]} Ne7 {[%emt 0:00:44]} 6. Bg5 {[%emt 0:01:50]} Ng6 {[%emt 0:02:08]} 7. h4 {[%emt 0:00:31]} h6 {[%emt 0:09:02]} 8. Bxf6 {[%emt 0:00:33]} Qxf6 {[%emt 0:02:09]} 9. h5 {[%emt 0:00:14]} Nf4 {[%emt 0:05:51]} 10. Ng1 {[%emt 0:00:58]} g6 $1 {[%emt 0:00:41]} 11. hxg6 {[%emt 0:00:09]} Nxg6 {[%emt 0:06:47]} 12. g3 {[%emt 0:06:20]} c6 {[%emt 0:09:14]} ({Black should try} 12... a6 $14) 13. Bh3 {[%emt 0:05:54]} Be7 {[%emt 0:04:22]} 14. Bxc8 {[%emt 0:04:14]} Rxc8 {[%emt 0:00:15]} 15. Qg4 {[%emt 0:00:10]} Rb8 {[%emt 0:14:17]} 16. Rh5 {[%emt 0:03:16]} Bd8 {[%emt 0:10:45]} 17. Rf5 {[%emt 0:02:15]} Qe7 {[%emt 0:02:56]} (17... Qg7 $14) 18. O-O-O {[%emt 0:00:44]} Qd7 {[%emt 0:05:41]} (18... h5 $16 {was necessary.} 19. Rxh5 Rxh5 20. Qxh5 Qg5+ 21. Qxg5 Bxg5+ 22. Kb1 Kd7) 19. Qh5 {[%emt 0:15:17]} c5 {[%emt 0:02:59]} 20. Nge2 {[%emt 0:04:31]} (20. f4 $18) 20... b5 {[%emt 0:02:03]} 21. f4 {[%emt 0:00:14]} b4 {[%emt 0:01:29]} 22. Nb1 {[%emt 0:01:21]} c4 {[%emt 0:03:19]} (22... Qa4 $1 $11) 23. Rh1 {[%emt 0:08:53]} (23. Nd2 $16 c3 24. Nb3 (24. bxc3 Qa4 $14)) 23... b3 {[%emt 0:02:33]} (23... Qc7 $11) 24. axb3 {[%emt 0:01:20]} cxb3 {[%emt 0:00:03]} 25. cxb3 {[%emt 0:12:17]} Qb5 {[%emt 0:01:49]} (25... Rxb3 $11 26. Nec3 (26. fxe5 Bg5+ 27. Rxg5 Qc7+ 28. Nbc3 hxg5 $19) 26... Rb8) 26. Nd2 {[%emt 0:02:38]} Bb6 {[%emt 0:04:41] [#]} 27. Qf3 $1 {[%emt 0:11:05]} (27. fxe5 Be3 $16) 27... Bc5 {[%emt 0:01:09]} 28. Nc3 {[%emt 0:00:58]} Qa6 {[%emt 0:01:35]} 29. Rf1 $2 {[%emt 0:03:37]} ({Better is} 29. Kb1 $18) 29... exf4 $1 {[%emt 0:00:14]} 30. gxf4 {[%emt 0:00:23]} Nh4 $1 {[%emt 0:00:09] Double Attack} 31. Qh5 $2 {[%emt 0:03:06]} (31. Qh3 $15 Nxf5 32. exf5) 31... Nxf5 {[%emt 0:00:05]} 32. exf5 {[%emt 0:00:09]} Kf8 $2 {[%emt 0:00:59]} (32... Be3 $19 33. Qd1 Kd7) 33. Re1 $2 {[%emt 0:03:10]} (33. Kc2 $15) 33... Re8 $2 {[%emt 0:02:34]} ({Better is} 33... Qa1+ $19 34. Ncb1 Bd4) 34. Rxe8+ {[%emt 0:00:05]} Kxe8 {[%emt 0:00:03]} 35. Nc4 {[%emt 0:00:35] [#]} ({Better is} 35. Kc2 $1 $15) 35... Qa1+ $1 {[%emt 0:01:20]} 36. Nb1 $2 {[%emt 0:00:06]} (36. Kc2 $17) 36... Rg8 {[%emt 0:00:08]} 37. Qe2+ {[%emt 0:01:42]} Kd8 {[%emt 0:00:14]} 38. Ncd2 {[%emt 0:00:11]} Rg1+ {[%emt 0:00:31]} 39. Kc2 {[%emt 0:00:12]} Bd4 {[%emt 0:00:37]} 40. Qb5 {[%emt 0:00:00]} Qxb2+ {[%emt 0:00:00]} 41. Kd3 {[%emt 0:03:04]} Rg3+ {[%emt 0:01:59]} 42. Ke2 {[%emt 0:00:04]} Re3+ {[%emt 0:00:40]} 43. Kd1 {[%emt 0:00:08]} Bc5 $19 {[%emt 0:04:26]} 44. Qb7 {[%emt 0:06:16]} Ke8 {[%emt 0:03:20]} 45. Qb8+ {[%emt 0:04:22]} Ke7 {[%emt 0:00:07]} 46. f6+ {[%emt 0:00:06]} Qxf6 {[%emt 0:00:12]} 47. b4 {[%emt 0:00:03]} Bb6 {[%emt 0:01:49]} 48. Qb7+ {[%emt 0:01:11]} Kf8 {[%emt 0:00:08]} 49. Qc8+ {[%emt 0:00:03]} Re8 {[%emt 0:00:20]} 50. Qg4 {[%emt 0:00:10]} Be3 {[%emt 0:01:47]} 51. f5 {[%emt 0:00:41]} Bxd2 {[%emt 0:01:45]} 52. Nxd2 {[%emt 0:00:05]} Qe5 {[%emt 0:01:23]} 53. Qh4 {[%emt 0:00:51]} Qe2+ {[%emt 0:00:12]} 54. Kc2 {[%emt 0:00:06]} Rc8+ {[%emt 0:00:06]} 0-1

[Event "UKR-ch Women 2020"]
[Site "Kherson"]
[Date "2020.12.09"]
[Round "4.7"]
[White "Martynkova, Olena"]
[Black "Hryzlova, Sofiia"]
[Result "1/2-1/2"]
[ECO "A13"]
[WhiteElo "2222"]
[BlackElo "2064"]
[Annotator "NA"]
[PlyCount "109"]
[EventDate "2020.12.06"]
[EventType "swiss"]
[EventCountry "UKR"]
[SourceTitle "playchess.com"]
[Source "ChessBase"]
[SourceQuality "1"]
[TimeControl "40/5400+30:1800+30"]

{[%evp 8,79,16,-12,-2,-37,-7,-52,-41,-74,-87,-131,-107,-217,-70,-87,-77,-88,-62,-85,32767,32767,32767,32767,32767,32767,32767,32767,32767,32767,32767,32767,-55,-68,32767,-56,-32,-62,-34,-32,-18,-80,32767,32767,32767,-65,-49,-52,-52,-50,-37,-23,0,-33,-30,-52,-14,-12,0,32767,-81,-143,0,0,0,0,0,0,32767,32767,0,0,0,0]} 1. Nf3 {[%emt 0:00:00]} Nf6 {[%emt 0:00:00]} 2. c4 {[%emt 0:00:44]} e6 {[%emt 0:00:40]} 3. g3 {[%emt 0:01:23]} d5 {[%emt 0:00:54]} 4. Bg2 {[%emt 0:03:41]} dxc4 {[%emt 0:01:21]} 5. O-O {[%emt 0:07:15]} a6 {[%emt 0:03:39]} 6. a4 {[%emt 0:08:45]} Nc6 {[%emt 0:06:21]} 7. Qc2 {[%emt 0:09:37]} e5 {[%emt 0:04:48]} 8. Qxc4 {[%emt 0:07:24]} Be6 {[%emt 0:00:40]} 9. Qh4 {[%emt 0:12:45]} (9. Qc2 $142) 9... Be7 {[%emt 0:05:22]} 10. d3 {[%emt 0:07:14] [#]} (10. Ng5 $17) 10... h6 {[%emt 0:03:37]} (10... Ng4 $1 $19 11. Ng5 Qd7) 11. Bg5 {[%emt 0:03:05]} O-O {[%emt 0:05:15]} 12. Bxf6 {[%emt 0:00:33]} Bxf6 {[%emt 0:00:14]} 13. Qe4 {[%emt 0:02:01]} Bd5 {[%emt 0:09:44]} 14. Qe3 {[%emt 0:00:57]} Nb4 {[%emt 0:01:34]} 15. Qd2 {[%emt 0:05:02]} Qd6 {[%emt 0:06:46]} 16. Nc3 {[%emt 0:01:00]} Bc6 {[%emt 0:01:28]} 17. Ne1 {[%emt 0:02:30]} Bg5 {[%emt 0:05:06]} 18. f4 {[%emt 0:04:27]} exf4 {[%emt 0:02:39]} 19. gxf4 {[%emt 0:00:06]} Bf6 {[%emt 0:01:52]} 20. Bxc6 {[%emt 0:04:49]} Qxc6 {[%emt 0:02:37]} 21. Ne4 {[%emt 0:00:35]} Qb6+ {[%emt 0:01:44]} 22. Kh1 {[%emt 0:00:31]} Be7 {[%emt 0:00:58]} 23. f5 {[%emt 0:01:26]} Nd5 {[%emt 0:01:23]} 24. Ng2 {[%emt 0:02:11]} (24. Rg1 $11 {remains equal.}) 24... Rad8 {[%emt 0:05:23]} 25. Rf3 {[%emt 0:06:04]} Nf6 {[%emt 0:02:25]} 26. Nc3 {[%emt 0:02:16]} Bb4 {[%emt 0:01:48]} 27. Qc2 {[%emt 0:03:37]} Rfe8 {[%emt 0:02:54]} 28. e4 {[%emt 0:00:13]} c6 {[%emt 0:01:50]} 29. Ne3 {[%emt 0:00:26]} Bc5 {[%emt 0:02:01]} 30. Nc4 {[%emt 0:00:32]} Qc7 {[%emt 0:00:10]} 31. e5 {[%emt 0:01:53]} Ng4 {[%emt 0:00:27]} 32. Ne4 {[%emt 0:00:57]} Bd4 {[%emt 0:02:47]} (32... b5 $5 {[%cal Rb5c4]} 33. Nxc5 bxc4 $11) 33. Rg3 {[%emt 0:00:40]} h5 {[%emt 0:05:23]} 34. h3 {[%emt 0:00:44]} (34. Qg2 $142) 34... Rxe5 {[%emt 0:04:04]} ({Reject} 34... Nxe5 $6 35. Qg2 $14 (35. Nf6+ Kf8 $15)) ({Of course not} 34... Bxe5 $6 35. Nxe5 Rxe5 36. Rag1 $16) ({Better is} 34... b5 $17 35. Ncd6 Rxe5 36. hxg4 Rxd6) 35. Nxe5 {[%emt 0:00:23]} ({Avoid the trap} 35. hxg4 $2 {[#]} Rxe4 $1 {[%mdl 512]} 36. Qh2 Rxg4 $19) 35... Bxe5 {[%emt 0:00:06]} 36. Rf3 {[%emt 0:01:01]} Nf6 {[%emt 0:01:28]} 37. Nxf6+ {[%emt 0:00:11]} Bxf6 {[%emt 0:00:06]} 38. Re1 {[%emt 0:00:45]} Qb6 {[%emt 0:04:24]} 39. b3 {[%emt 0:00:13]} Qd4 $11 {[%emt 0:00:42]} 40. Re4 {[%emt 0:00:00]} Qa1+ {[%emt 0:00:00]} 41. Kg2 {[%emt 0:02:14]} Bd4 {[%emt 0:08:39]} 42. Rf1 {[%emt 0:00:59]} Qa3 {[%emt 0:00:18]} 43. Rfe1 {[%emt 0:03:58]} Rd6 {[%emt 0:10:18]} 44. Qc4 {[%emt 0:08:18]} Rd5 {[%emt 0:00:25]} 45. Qc2 {[%emt 0:15:58]} Qd6 {[%emt 0:01:07]} 46. Rf1 {[%emt 0:02:32]} h4 {[%emt 0:00:28]} 47. Rg4 {[%emt 0:00:22]} Bf6 {[%emt 0:00:25]} 48. Rf3 {[%emt 0:00:21]} Qd7 {[%emt 0:01:12]} 49. Qe2 {[%emt 0:00:35]} Rxf5 {[%emt 0:04:09]} 50. Rxf5 {[%emt 0:00:03]} Qxf5 {[%emt 0:00:08]} 51. Qe8+ {[%emt 0:00:05]} Kh7 {[%emt 0:00:10]} 52. Qxf7 {[%emt 0:00:11]} Qxd3 {[%emt 0:00:50]} 53. Qh5+ {[%emt 0:00:10]} Kg8 {[%emt 0:00:09]} 54. Qe8+ {[%emt 0:00:06]} Kh7 {[%emt 0:00:05]} 55. Qh5+ {[%emt 0:00:05]} 1/2-1/2

[Event "UKR-ch Women 2020"]
[Site "Kherson"]
[Date "2020.12.09"]
[Round "4.8"]
[White "Zinkevich, Julia"]
[Black "Tsirulnik, Maritsa"]
[Result "1/2-1/2"]
[ECO "A06"]
[WhiteElo "2178"]
[BlackElo "2139"]
[Annotator "NA"]
[PlyCount "87"]
[EventDate "2020.12.06"]
[EventType "swiss"]
[EventCountry "UKR"]
[SourceTitle "playchess.com"]
[Source "ChessBase"]
[SourceQuality "1"]
[TimeControl "40/5400+30:1800+30"]

1. Nf3 {[%emt 0:00:01]} d5 {[%emt 0:00:18]} 2. g3 {[%emt 0:00:22]} Nf6 {[%emt 0:03:00]} 3. Bg2 {[%emt 0:00:15]} b5 {[%emt 0:14:47]} 4. O-O {[%emt 0:01:49]} Bb7 {[%emt 0:00:09]} 5. d3 {[%emt 0:06:10]} e6 {[%emt 0:11:44]} 6. Nc3 {[%emt 0:01:34]} a6 {[%emt 0:06:44]} 7. Ne5 {[%emt 0:26:46]} Nbd7 {[%emt 0:06:46]} 8. f4 {[%emt 0:15:12]} c5 {[%emt 0:13:06]} 9. e3 {[%emt 0:06:25]} Be7 {[%emt 0:04:01]} 10. Nxd7 {[%emt 0:11:02]} Qxd7 {[%emt 0:00:06]} 11. Qe2 {[%emt 0:01:03]} O-O {[%emt 0:02:33]} 12. Nd1 {[%emt 0:07:19]} b4 {[%emt 0:03:24]} 13. Nf2 {[%emt 0:02:31]} a5 {[%emt 0:00:48]} 14. g4 Ne8 {[%emt 0:02:22]} 15. g5 {[%emt 0:05:48]} e5 {[%emt 0:05:43]} 16. e4 exf4 {[%emt 0:05:28]} 17. Bxf4 {[%emt 0:03:13]} dxe4 {[%emt 0:02:26]} 18. Nxe4 {[%emt 0:00:38]} f5 {[%emt 0:06:08]} 19. Nd2 {[%emt 0:03:45]} Bxg2 {[%emt 0:01:09]} 20. Qxg2 {[%emt 0:01:29]} Nc7 {[%emt 0:00:48]} 21. Bxc7 {[%emt 0:01:46]} Qxc7 {[%emt 0:00:04]} 22. Qd5+ {[%emt 0:02:03]} Kh8 {[%emt 0:00:05]} 23. Rxf5 {[%emt 0:00:55]} Rxf5 {[%emt 0:00:42]} 24. Qxf5 {[%emt 0:00:22]} Rf8 {[%emt 0:01:26]} 25. Qg4 {[%emt 0:00:48]} Qe5 {[%emt 0:01:30]} 26. Ne4 $2 {[%emt 0:00:40]} (26. Nc4 $11 Qd5 27. Rf1) 26... Qxb2 {[%emt 0:01:30]} 27. Rf1 $19 {[%emt 0:00:47]} Rxf1+ {[%emt 0:05:54]} 28. Kxf1 {[%emt 0:00:01]} Qc1+ {[%emt 0:00:17]} 29. Kg2 {[%emt 0:00:24]} Qxc2+ {[%emt 0:00:05]} 30. Nf2 {[%emt 0:00:07]} Kg8 {[%emt 0:00:13]} 31. Qe6+ {[%emt 0:00:38]} Kf8 {[%emt 0:00:04]} 32. Qc8+ {[%emt 0:00:24]} Kf7 {[%emt 0:00:04]} 33. Qf5+ {[%emt 0:00:05]} Kg8 {[%emt 0:00:21]} 34. Qe6+ {[%emt 0:00:32]} Kf8 {[%emt 0:00:04]} 35. Qc8+ {[%emt 0:00:19]} Kf7 {[%emt 0:00:04]} 36. Qf5+ {[%emt 0:00:04]} Kg8 {[%emt 0:00:24]} 37. Qd5+ {[%emt 0:00:40]} Kf8 {[%emt 0:00:05]} 38. Qa8+ {[%emt 0:01:15]} Kf7 {[%emt 0:00:04]} 39. Qd5+ {[%emt 0:00:26]} Kf8 {[%emt 0:00:24]} 40. Qf3+ {[%emt 0:00:00]} Ke8 {[%emt 0:00:00]} 41. Qc6+ {[%emt 0:10:49]} Kf8 {[%emt 0:03:26]} 42. Qc8+ {[%emt 0:01:33]} Kf7 {[%emt 0:00:05]} 43. Qf5+ {[%emt 0:00:07]} Kg8 {[%emt 0:00:16]} 44. Qe6+ {[%emt 0:06:32]} 1/2-1/2

[Event "UKR-ch Women 2020"]
[Site "Kherson"]
[Date "2020.12.09"]
[Round "4.10"]
[White "Grineva, Marianna"]
[Black "Mashchenko, Tamila"]
[Result "1-0"]
[ECO "B53"]
[WhiteElo "2001"]
[BlackElo "1768"]
[Annotator "NA"]
[PlyCount "85"]
[EventDate "2020.12.06"]
[EventType "swiss"]
[EventCountry "UKR"]
[SourceTitle "playchess.com"]
[Source "ChessBase"]
[SourceQuality "1"]
[TimeControl "40/5400+30:1800+30"]

{[%evp 8,77,20,4,30,0,3,0,0,2,68,68,72,78,71,-23,60,50,80,58,193,193,185,32767,32767,32767,32767,32767,32767,32767,32767,32767,32767,0,32767,32767,148,133,32767,109,202,196,193,207,161,116,118,95,170,121,104,122,114,32767,133,158,32767,137,32767,32767,32767,32767,32767,32767,32767,143,200,221,238,240,247,234]} 1. e4 {[%emt 0:00:00]} c5 {[%emt 0:00:00]} 2. Nf3 {[%emt 0:00:00]} d6 {[%emt 0:00:00]} 3. d4 {[%emt 0:00:00]} cxd4 {[%emt 0:00:00]} 4. Qxd4 {[%emt 0:00:02]} Nc6 {[%emt 0:00:57]} 5. Bb5 {[%emt 0:00:24]} Bd7 {[%emt 0:02:49]} 6. Bxc6 {[%emt 0:00:16]} Bxc6 {[%emt 0:00:24]} 7. Nc3 {[%emt 0:00:53]} Nf6 {[%emt 0:06:35]} 8. Bg5 {[%emt 0:06:33]} h6 {[%emt 0:03:32]} ({Black should play} 8... e6 $11) 9. Bxf6 {[%emt 0:05:14]} gxf6 {[%emt 0:00:11]} 10. O-O {[%emt 0:05:12]} Rg8 {[%emt 0:02:46]} 11. Nh4 {[%emt 0:13:41]} ({White should try} 11. Nd5 $16) 11... Qd7 {[%emt 0:04:20]} ({Black should play} 11... e6 $11) 12. g3 {[%emt 0:06:19]} Qh3 {[%emt 0:09:20]} 13. Nf5 {[%emt 0:03:54]} h5 {[%emt 0:10:56]} (13... Rg5 $16 14. f3 Rxf5 15. exf5 Qxf5) 14. Nd5 {[%emt 0:06:49]} Rd8 {[%emt 0:11:58]} 15. f3 {[%emt 0:10:00]} Bxd5 {[%emt 0:13:34]} 16. Qxd5 {[%emt 0:00:21]} e6 {[%emt 0:00:15]} 17. Qb5+ {[%emt 0:01:15]} Rd7 {[%emt 0:00:01]} 18. Ne3 {[%emt 0:01:07]} Bh6 {[%emt 0:01:10]} 19. Ng2 {[%emt 0:04:25]} a6 {[%emt 0:05:55] [#]} 20. Qc4 {[%emt 0:04:52]} (20. Qd3 $1 $16) 20... Ke7 {[%emt 0:01:49]} 21. Rad1 {[%emt 0:00:54]} e5 {[%emt 0:04:00]} (21... f5 $1 $11 {keeps the balance.} 22. e5 d5) 22. Rd5 {[%emt 0:05:09]} Bf4 {[%emt 0:09:55]} 23. Qe2 {[%emt 0:09:25]} (23. Nxf4 $2 exf4 24. Rd2 fxg3 $19) 23... Bh6 {[%emt 0:01:58]} 24. c4 {[%emt 0:03:49]} f5 {[%emt 0:05:00] [#]} 25. exf5 $1 Qxf5 {[%emt 0:00:01]} 26. f4 {[%emt 0:03:30]} (26. Rfd1 $18) 26... Qg4 {[%emt 0:00:24]} 27. Qxg4 {[%emt 0:05:00]} Rxg4 {[%emt 0:00:11]} (27... hxg4 $16 28. fxe5 Bg7) 28. fxe5 {[%emt 0:01:04]} Rxc4 {[%emt 0:00:41]} 29. exd6+ {[%emt 0:00:44]} Ke6 {[%emt 0:00:37]} 30. Rxh5 {[%emt 0:01:02]} Bd2 {[%emt 0:01:20]} 31. Rhf5 {[%emt 0:00:49]} Rc2 {[%emt 0:01:22]} 32. Rf6+ {[%emt 0:00:53]} Kd5 {[%emt 0:00:28]} 33. Rxf7 {[%emt 0:00:47]} Kxd6 {[%emt 0:00:11]} 34. R1f6+ {[%emt 0:01:06]} Kc7 {[%emt 0:00:13]} 35. Rxd7+ {[%emt 0:00:23]} Kxd7 {[%emt 0:00:04]} 36. Rb6 {[%emt 0:00:16]} Ba5 {[%emt 0:01:34] [#]} 37. Rb3 $1 {[%emt 0:01:26]} ({Don't play} 37. Rxb7+ $6 Kc6 $16) 37... Kc6 {[%emt 0:00:39]} 38. h4 {[%emt 0:00:23]} b5 $18 {[%emt 0:01:02]} 39. Kh2 {[%emt 0:00:34]} Bd2 {[%emt 0:00:32]} 40. h5 {[%emt 0:00:00]} a5 {[%emt 0:00:00]} 41. a4 {[%emt 0:11:01]} b4 {[%emt 0:02:36]} 42. Kh3 {[%emt 0:01:12]} Bc3 {[%emt 0:00:53]} 43. bxc3 {[%emt 0:01:11]} 1-0